bitfinex/quotes_SOLUSD_20240926
["timestamp","ask_amount","ask_price","bid_price","bid_amount"]
[1727366285275,1.0,157.55,157.49,19.37055872]
[1727366285773,6.3468,157.56,157.49,19.37055872]
[1727366285954,6.3479,157.54,157.47,19.37055872]
[1727366286157,1.0,157.53,157.47,19.37055872]
[1727366286563,50.721,157.55,157.48,1.26988481]
[1727366286564,44.3738,157.55,157.48,1.26988481]
[1727366286765,44.3738,157.55,157.49,19.37055872]
[1727366288551,50.721,157.55,157.49,19.37055872]
[1727366289167,44.3738,157.55,157.49,19.37055872]
[1727366292474,44.3738,157.55,157.5,1.26971291]
[1727366292772,44.3738,157.55,157.49,19.37055872]
[1727366293361,44.3738,157.55,157.5,1.26971785]
[1727366293975,44.3738,157.55,157.49,19.37055872]
[1727366294459,1.0,157.54,157.49,19.37055872]
[1727366294653,44.3738,157.55,157.49,19.37055872]
[1727366295468,1.0,157.54,157.49,19.37055872]
[1727366295774,44.3738,157.55,157.49,19.37055872]
[1727366296177,1.0,157.54,157.49,19.37055872]
[1727366296377,1.0,157.54,157.46,20.0]
[1727366296557,0.12549,157.54,157.46,20.0]
[1727366296758,0.12549,157.54,157.47,1.26990011]
[1727366297358,50.7213,157.55,157.47,20.64045883]
[1727366297863,50.7213,157.55,157.48,1.26982866]
[1727366298059,44.3738,157.55,157.47,19.37055872]
[1727366298290,6.3478,157.54,157.47,19.37055872]
[1727366298456,1.0,157.53,157.47,19.37055872]
[1727366298662,6.3476,157.54,157.47,19.37055872]
[1727366298963,44.3738,157.55,157.47,19.37055872]
[1727366299262,50.721,157.55,157.47,19.37055872]
[1727366299865,44.3738,157.55,157.47,19.37055872]
[1727366300464,44.3738,157.55,157.48,1.26978834]
[1727366300776,44.3738,157.55,157.47,19.37055872]
[1727366302174,44.3738,157.55,157.48,21.26978303]
[1727366302365,44.3738,157.55,157.48,20.0]
[1727366302762,1.0,157.54,157.48,20.0]
[1727366302967,7.3476,157.54,157.48,20.0]
[1727366303884,44.027864,157.52,157.45,0.2549585]
[1727366304180,18.81279,157.46,157.45,0.2549585]
[1727366304363,42.715164,157.46,157.45,0.2549585]
[1727366306486,42.715164,157.46,157.4,0.2549585]
[1727366306487,6.3517,157.44,157.4,0.2549585]
[1727366306886,1.0,157.43,157.4,0.2549585]
[1727366307189,0.12549,157.42,157.4,0.2549585]
[1727366307384,34.0564,157.41,157.4,0.2549585]
[1727366307688,58.084264,157.41,157.4,0.2549585]
[1727366309089,33.0564,157.41,157.4,0.2549585]
[1727366311964,55.111064,157.45,157.4,0.2549585]
[1727366312308,31.0832,157.45,157.4,0.2549585]
[1727366312468,31.0832,157.45,157.41,19.41180409]
[1727366312668,1.0,157.44,157.4,0.2549585]
[1727366313091,31.0832,157.45,157.4,1.52543526]
[1727366313279,31.0832,157.45,157.4,0.2549585]
[1727366314286,1.0,157.44,157.4,0.2549585]
[1727366316384,30.379864,157.43,157.4,0.2549585]
[1727366316585,1.0,157.42,157.4,0.2549585]
[1727366317712,24.027864,157.41,157.4,0.2549585]
[1727366319017,24.027864,157.42,157.4,0.2549585]
[1727366320315,31.0832,157.45,157.4,0.2549585]
[1727366321612,1.0,157.44,157.4,0.2549585]
[1727366322922,7.3516,157.44,157.4,0.2549585]
[1727366323217,24.027864,157.44,157.4,0.2549585]
[1727366323727,7.3521,157.43,157.4,0.2549585]
[1727366323900,6.3521,157.43,157.4,0.2549585]
[1727366324099,7.3524,157.42,157.4,0.2549585]
[1727366324416,25.027864,157.44,157.4,0.2549585]
[1727366325093,24.027864,157.42,157.4,0.2549585]
[1727366325711,1.0,157.41,157.4,0.2549585]
[1727366326420,24.027864,157.42,157.4,0.2549585]
[1727366327817,7.352,157.43,157.4,0.2549585]
[1727366327818,23.776884,157.43,157.4,0.2549585]
[1727366328514,31.0832,157.45,157.4,0.2549585]
[1727366328820,37.4344,157.45,157.4,0.2549585]
[1727366329118,31.0832,157.45,157.4,0.2549585]
[1727366329305,18.6873,157.46,157.41,19.41180409]
[1727366329306,12.3365,157.46,157.41,19.41180409]
[1727366329503,31.7234,157.49,157.41,19.41180409]
[1727366329703,6.3506,157.47,157.4,0.2549585]
[1727366330011,1.0,157.46,157.4,0.2549585]
[1727366330317,7.3509,157.46,157.4,0.2549585]
[1727366330896,31.7234,157.49,157.41,19.41180409]
[1727366331217,31.7234,157.49,157.43,19.41180409]
[1727366331398,38.073,157.49,157.43,19.41180409]
[1727366331913,6.35,157.48,157.43,19.41180409]
[1727366332302,31.7234,157.49,157.43,19.41180409]
[1727366332709,1.0,157.48,157.43,19.41180409]
[1727366332897,1.0,157.48,157.4,0.2549585]
[1727366333099,6.3514,157.45,157.4,0.2549585]
[1727366333303,1.0,157.44,157.4,0.2549585]
[1727366333915,6.60178,157.46,157.4,0.2549585]
[1727366334228,1.0,157.45,157.4,0.2549585]
[1727366335921,6.3525,157.42,157.4,0.2549585]
[1727366336223,1.0,157.41,157.4,0.2549585]
[1727366336727,12.694,157.43,157.4,0.2549585]
[1727366337916,0.12549,157.46,157.4,0.2549585]
[1727366338118,0.12549,157.46,157.4,19.66676259]
[1727366338319,12.7594,157.47,157.4,19.66676259]
[1727366338620,19.1099,157.47,157.4,19.66676259]
[1727366339023,7.3508,157.46,157.4,0.2549585]
[1727366340011,24.027864,157.45,157.4,0.2549585]
[1727366340320,7.3517,157.44,157.4,0.2549585]
[1727366341208,0.12549,157.43,157.4,0.2549585]
[1727366341717,1.0,157.42,157.4,0.2549585]
[1727366341922,7.3526,157.42,157.4,0.2549585]
[1727366342226,1.0,157.42,157.4,0.2549585]
[1727366342520,0.12549,157.44,157.4,0.2549585]
[1727366342826,19.1102,157.47,157.4,19.66676259]
[1727366343213,31.7234,157.49,157.42,19.41180409]
[1727366343623,31.7234,157.49,157.43,1.27028339]
[1727366343806,31.7234,157.49,157.42,19.41180409]
[1727366344329,1.0,157.48,157.42,19.41180409]
[1727366344522,1.0,157.48,157.4,19.66676259]
[1727366344716,24.027864,157.47,157.4,19.66676259]
[1727366345503,1.0,157.46,157.4,19.66676259]
[1727366345710,6.3514,157.45,157.4,0.2549585]
[1727366345908,1.0,157.44,157.4,0.2549585]
[1727366346311,0.12549,157.47,157.4,19.66676259]
[1727366346720,12.3194,157.51,157.4,19.66676259]
[1727366346721,12.3194,157.51,157.43,20.0]
[1727366346918,12.3194,157.51,157.44,19.41180409]
[1727366348525,1.0,157.5,157.44,19.41180409]
[1727366348727,0.12549,157.49,157.42,19.41180409]
[1727366349027,0.12549,157.47,157.4,19.66676259]
[1727366349222,1.0,157.46,157.4,19.66676259]
[1727366350926,6.47589,157.47,157.4,19.66676259]
[1727366351137,6.47559,157.48,157.4,19.66676259]
[1727366351341,0.12549,157.48,157.4,19.66676259]
[1727366351544,7.3504,157.47,157.4,19.66676259]
[1727366352860,6.47629,157.46,157.4,0.2549585]
[1727366353141,1.0,157.45,157.4,0.2549585]
[1727366353345,7.3512,157.45,157.4,0.2549585]
[1727366354144,6.3512,157.45,157.4,0.2549585]
[1727366354540,1.0,157.44,157.4,0.2549585]
[1727366355620,6.3521,157.43,157.4,0.2549585]
[1727366355951,7.3524,157.42,157.4,0.2549585]
[1727366356338,1.0,157.42,157.4,0.2549585]
[1727366357046,6.47829,157.41,157.4,0.2549585]
[1727366357627,0.12549,157.41,157.4,0.2549585]
[1727366358348,7.47829,157.41,157.4,0.2549585]
[1727366358530,31.380664,157.41,157.4,0.2549585]
[1727366359947,0.12549,157.41,157.4,0.2549585]
[1727366360642,6.47829,157.41,157.4,0.2549585]
[1727366363052,30.380664,157.41,157.4,0.2549585]
[1727366365328,31.380664,157.41,157.4,0.2549585]
[1727366365531,84.365764,157.41,157.4,0.2549585]
[1727366367253,103.465764,157.41,157.4,0.2549585]
[1727366367424,103.465764,157.41,157.34,0.4544173]
[1727366367425,0.12549,157.35,157.34,0.4544173]
[1727366367628,1.12549,157.35,157.34,0.4544173]
[1727366368351,31.383064,157.35,157.34,0.4544173]
[1727366370454,30.383064,157.35,157.34,0.4544173]
[1727366371426,6.48069,157.35,157.34,0.4544173]
[1727366371631,50.383064,157.35,157.34,0.4544173]
[1727366371832,81.977864,157.35,157.34,0.4544173]
[1727366372545,81.977864,157.35,157.31,0.2549585]
[1727366372546,6.3564,157.32,157.31,0.2549585]
[1727366372749,31.384264,157.32,157.31,0.2549585]
[1727366374550,30.384264,157.32,157.31,0.2549585]
[1727366376354,1.0,157.34,157.31,0.2549585]
[1727366376556,30.5948,157.35,157.31,0.2549585]
[1727366377534,13.2587,157.37,157.31,0.2549585]
[1727366377735,6.3538,157.39,157.31,20.93804342]
[1727366377952,12.0336,157.41,157.31,20.93804342]
[1727366378130,6.3541,157.38,157.31,20.93804342]
[1727366378335,7.3544,157.37,157.31,0.2549585]
[1727366378656,7.3548,157.36,157.31,0.2549585]
[1727366379536,1.0,157.35,157.31,0.2549585]
[1727366379749,15.8837,157.4,157.31,0.2549585]
[1727366380053,6.3549,157.36,157.31,0.2549585]
[1727366381548,1.0,157.38,157.31,0.2549585]
[1727366381549,6.354,157.38,157.31,0.2549585]
[1727366382057,0.12549,157.38,157.31,0.2549585]
[1727366382261,6.3543,157.38,157.31,0.2549585]
[1727366382434,7.3544,157.37,157.31,0.2549585]
[1727366382638,6.3544,157.37,157.31,0.2549585]
[1727366383351,0.25098,157.39,157.31,0.2549585]
[1727366383539,0.25098,157.39,157.31,19.66676259]
[1727366383540,6.60458,157.39,157.31,19.66676259]
[1727366383739,0.12549,157.39,157.32,1.2711133]
[1727366384140,6.47939,157.39,157.32,1.2711133]
[1727366384336,0.12549,157.39,157.31,19.66676259]
[1727366384536,0.25098,157.39,157.31,0.2549585]
[1727366384755,6.3541,157.38,157.31,0.2549585]
[1727366385152,0.12549,157.39,157.31,0.2549585]
[1727366385348,6.3532,157.4,157.33,19.41180409]
[1727366385660,6.3529,157.41,157.34,1.27100872]
[1727366386045,6.3521,157.43,157.34,1.27100872]
[1727366386244,6.3515,157.45,157.37,19.41180409]
[1727366387160,1.0,157.44,157.37,19.41180409]
[1727366388057,7.3517,157.44,157.35,19.41180409]
[1727366388363,6.3521,157.43,157.35,19.41180409]
[1727366388662,6.3516,157.44,157.35,19.41180409]
[1727366389249,6.352,157.43,157.35,19.41180409]
[1727366389563,6.47799,157.42,157.35,19.41180409]
[1727366390163,6.3525,157.42,157.35,19.41180409]
[1727366390337,0.12549,157.44,157.35,19.41180409]
[1727366390663,6.352,157.43,157.35,19.41180409]
[1727366390861,6.3532,157.4,157.34,20.0]
[1727366391063,1.0,157.39,157.34,20.0]
[1727366392167,1.0,157.4,157.34,20.0]
[1727366392757,6.3524,157.42,157.34,20.0]
[1727366393071,6.3537,157.39,157.33,30.0009]
[1727366393368,26.47799,157.42,157.34,1.27105649]
[1727366393572,0.12549,157.43,157.37,19.41180409]
[1727366393742,6.352,157.43,157.37,19.41180409]
[1727366394052,6.3517,157.44,157.37,19.41180409]
[1727366394573,7.3521,157.43,157.37,19.41180409]
[1727366395365,20.25098,157.45,157.37,19.41180409]
[1727366395579,6.3519,157.44,157.37,19.41180409]
[1727366396160,0.25098,157.45,157.37,19.41180409]
[1727366396377,6.3513,157.45,157.37,19.41180409]
[1727366398850,1.0,157.44,157.37,19.41180409]
[1727366399554,6.3513,157.45,157.37,19.41180409]
[1727366399754,1.0,157.44,157.39,19.41180409]
[1727366399959,6.3512,157.46,157.39,19.41180409]
[1727366400501,0.2549585,157.47,157.4,1.27049968]
[1727366400777,0.2549585,157.47,157.41,19.41180409]
[1727366401550,6.3512,157.45,157.41,19.41180409]
[1727366402051,6.3509,157.46,157.41,19.41180409]
[1727366404074,0.2549585,157.47,157.41,19.41180409]
[1727366404275,6.3508,157.46,157.39,63.32830409]
[1727366404470,7.3513,157.45,157.39,63.32830409]
[1727366404667,6.3527,157.42,157.35,64.95700409]
[1727366404877,1.0,157.41,157.35,64.95700409]
[1727366405573,16.2567485,157.47,157.37,19.41180409]
[1727366405879,6.3513,157.45,157.37,19.41180409]
[1727366406074,6.3517,157.44,157.37,19.41180409]
[1727366406458,6.3515,157.45,157.38,1.27059052]
[1727366406661,6.3515,157.45,157.37,19.41180409]
[1727366406860,6.6057585,157.47,157.39,19.41180409]
[1727366407071,0.2549585,157.47,157.41,19.41180409]
[1727366407259,0.2549585,157.47,157.42,1.27031232]
[1727366407460,0.2549585,157.47,157.43,19.41180409]
[1727366407873,0.2549585,157.47,157.44,1.27030325]
[1727366408068,0.2549585,157.47,157.45,19.41180409]
[1727366408278,0.2549585,157.47,157.46,1.26993634]
[1727366408473,0.2549585,157.47,157.45,19.41180409]
[1727366408660,0.2549585,157.47,157.46,1.26982296]
[1727366408981,0.2549585,157.47,157.45,19.41180409]
[1727366409781,0.2549585,157.47,157.43,19.41180409]
[1727366410154,0.2549585,157.47,157.42,43.8247]
[1727366410355,0.2549585,157.47,157.42,31.7918]
[1727366410556,0.2549585,157.47,157.39,19.41180409]
[1727366410857,6.3513,157.45,157.38,42.8342]
[1727366411068,1.0,157.44,157.38,42.8342]
[1727366411357,6.3521,157.43,157.38,30.1259]
[1727366411670,1.0,157.42,157.35,19.41180409]
[1727366412249,0.2549585,157.47,157.36,1.27067652]
[1727366412250,0.12549,157.46,157.36,1.27067652]
[1727366412568,6.3525,157.42,157.34,30.1259]
[1727366412779,0.25098,157.44,157.34,30.1259]
[1727366412780,1.0,157.41,157.34,30.1259]
[1727366412982,6.3535,157.4,157.34,30.1259]
[1727366413158,1.0,157.39,157.34,30.1259]
[1727366413472,1.0,157.4,157.34,30.1259]
[1727366413655,6.3529,157.41,157.34,30.1259]
[1727366413851,6.3524,157.42,157.34,30.1259]
[1727366414081,45.8286,157.43,157.35,1.27076094]
[1727366414254,71.4023585,157.47,157.35,1.27076094]
[1727366414580,6.351,157.46,157.37,31.04970427]
[1727366414892,6.351,157.46,157.38,1.27055531]
[1727366415269,45.0516585,157.47,157.4,31.04970427]
[1727366415462,0.2549585,157.47,157.43,31.04970427]
[1727366416379,0.2549585,157.47,157.43,20.0]
[1727366416757,0.2549585,157.47,157.44,1.27021829]
[1727366417176,0.2549585,157.47,157.43,20.0]
[1727366417580,0.2549585,157.47,157.44,1.27010606]
[1727366417779,0.2549585,157.47,157.42,32.0624]
[1727366418084,0.2549585,157.47,157.41,20.0]
[1727366418262,0.2549585,157.47,157.39,20.0]
[1727366418774,1.2549585,157.47,157.39,20.0]
[1727366419157,6.3516,157.44,157.34,64.36520427]
[1727366419365,12.2887585,157.47,157.34,64.36520427]
[1727366419366,1.2549585,157.47,157.37,31.04970427]
[1727366419565,0.2549585,157.47,157.4,31.04970427]
[1727366420491,0.2549585,157.47,157.46,31.04970427]
[1727366420778,0.2549585,157.47,157.46,32.31951283]
[1727366420961,0.2549585,157.47,157.46,51.30068427]
[1727366421167,0.2549585,157.47,157.46,51.04970427]
[1727366421554,2.6257585,157.47,157.46,51.04970427]
[1727366421756,2.6257585,157.47,157.46,51.17519427]
[1727366422191,2.6257585,157.47,157.46,51.30068427]
[1727366422787,0.2549585,157.52,157.5,0.12549]
[1727366423161,0.2549585,157.52,157.5,0.25098]
[1727366423676,0.2549585,157.52,157.49,31.04970427]
[1727366424002,0.2549585,157.52,157.44,20.0]
[1727366424280,0.2549585,157.52,157.46,20.0]
[1727366424485,0.2549585,157.52,157.47,1.26967825]
[1727366424863,0.2549585,157.52,157.48,1.2696814]
[1727366425460,6.3491,157.51,157.46,20.0]
[1727366425783,6.3492,157.5,157.46,20.0]
[1727366425961,1.0,157.49,157.39,63.09490427]
[1727366426165,32.5054,157.51,157.39,63.09490427]
[1727366426370,6.3505,157.47,157.39,63.09490427]
[1727366426581,6.35,157.48,157.4,1.27016586]
[1727366426775,0.2549585,157.52,157.46,31.04970427]
[1727366426966,0.2549585,157.52,157.47,1.26968215]
[1727366427173,0.2549585,157.52,157.47,21.26968215]
[1727366428376,0.2549585,157.52,157.49,31.04970427]
[1727366428578,0.2549585,157.52,157.5,1.26956825]
[1727366429498,0.2549585,157.52,157.5,21.26956825]
[1727366430586,0.2549585,157.52,157.5,20.0]
[1727366431178,0.2549585,157.52,157.51,1.26957953]
[1727366431385,0.2549585,157.52,157.51,1.26953214]
[1727366431582,0.2549585,157.52,157.5,20.0]
[1727366431781,0.2549585,157.52,157.49,31.04970427]
[1727366433096,6.3496,157.49,157.46,31.04970427]
[1727366433278,6.3492,157.5,157.43,31.04970427]
[1727366433999,6.3497,157.49,157.43,31.04970427]
[1727366434200,6.3507,157.47,157.4,31.04970427]
[1727366434372,6.3507,157.47,157.36,44.35650427]
[1727366434373,6.3516,157.44,157.36,44.35650427]
[1727366434707,16.12558,157.49,157.36,31.04970427]
[1727366435009,19.5916,157.5,157.42,31.04970427]
[1727366435293,13.2424,157.5,157.43,1.27010501]
[1727366435605,19.5917,157.5,157.43,1.27010501]
[1727366435772,13.2424,157.5,157.43,1.27010501]
[1727366436103,31.9777585,157.52,157.48,31.04970427]
[1727366436104,0.2549585,157.52,157.48,31.04970427]
[1727366436277,0.2549585,157.52,157.49,1.26968204]
[1727366437296,0.2549585,157.52,157.48,31.04970427]
[1727366437486,0.2549585,157.52,157.49,20.0]
[1727366438284,0.2549585,157.52,157.5,1.26959429]
[1727366439182,0.2549585,157.52,157.49,20.0]
[1727366439807,0.2549585,157.52,157.46,20.0]
[1727366440380,0.2549585,157.52,157.47,1.26983791]
[1727366440589,0.2549585,157.52,157.48,31.04970427]
[1727366440777,0.2549585,157.52,157.49,1.26971481]
[1727366441397,0.2549585,157.52,157.48,31.04970427]
[1727366443591,0.2549585,157.52,157.49,1.26977255]
[1727366443792,0.2549585,157.52,157.48,31.04970427]
[1727366444317,0.2549585,157.52,157.46,20.0]
[1727366444813,6.3488,157.51,157.46,20.0]
[1727366444992,6.3488,157.51,157.45,31.04970427]
[1727366445393,6.3488,157.51,157.38,46.2919]
[1727366445394,6.35,157.48,157.42,31.04970427]
[1727366445591,1.0,157.47,157.42,31.04970427]
[1727366445905,12.8672,157.47,157.39,31.04970427]
[1727366446291,12.8672,157.47,157.4,1.27033013]
[1727366446989,12.8672,157.47,157.45,31.04970427]
[1727366447205,32.5513,157.48,157.45,31.04970427]
[1727366447993,32.5513,157.48,157.42,31.04970427]
[1727366448193,32.5513,157.48,157.43,20.0]
[1727366448596,32.5513,157.48,157.42,31.04970427]
[1727366448915,6.3511,157.46,157.4,20.0]
[1727366449117,6.47589,157.47,157.4,20.0]
[1727366449295,6.47589,157.47,157.4,21.2704667]
[1727366449597,6.3504,157.47,157.4,21.2704667]
[1727366450005,32.5513,157.48,157.4,21.2704667]
[1727366450205,38.9014,157.48,157.4,21.2704667]
[1727366452502,7.3505,157.47,157.4,20.0]
[1727366452703,6.3505,157.47,157.4,20.0]
[1727366452903,6.3505,157.47,157.41,1.27041147]
[1727366453116,32.5513,157.48,157.41,1.27041147]
[1727366453419,32.5513,157.48,157.4,20.0]
[1727366453620,32.5513,157.48,157.39,31.04970427]
[1727366453795,6.47669,157.45,157.36,32.32023874]
[1727366453997,6.3513,157.45,157.36,32.32023874]
[1727366454208,6.3513,157.45,157.36,31.04970427]
[1727366455008,6.3513,157.45,157.37,20.0]
[1727366455318,12.0823,157.46,157.39,31.04970427]
[1727366455529,12.0823,157.46,157.4,1.27049197]
[1727366455819,12.0823,157.46,157.39,31.04970427]
[1727366455820,18.4331,157.46,157.39,31.04970427]
[1727366456208,6.47679,157.45,157.37,20.0]
[1727366456404,0.12549,157.45,157.37,21.27064095]
[1727366456618,6.47679,157.45,157.37,21.27064095]
[1727366457017,18.4331,157.46,157.37,21.27064095]
[1727366457611,18.4331,157.46,157.37,20.0]
[1727366458326,18.4331,157.46,157.38,1.27051102]
[1727366458730,18.4331,157.46,157.37,20.0]
[1727366459738,1.0,157.45,157.37,20.0]
[1727366459954,6.3516,157.44,157.37,20.0]
[1727366460138,32.0041,157.43,157.35,0.2549585]
[1727366460312,0.25098,157.42,157.35,0.2549585]
[1727366460508,12.0238,157.4,157.35,0.2549585]
[1727366460711,12.0238,157.4,157.36,31.04970427]
[1727366461533,31.7364,157.55,157.36,31.04970427]
[1727366461534,12.5687,157.44,157.39,31.04970427]
[1727366461731,12.5687,157.44,157.42,31.04970427]
[1727366461905,30.9769,157.47,157.43,20.0]
[1727366462230,30.9769,157.47,157.44,1.27010403]
[1727366462825,44.0763,157.53,157.46,20.0]
[1727366463128,44.0763,157.53,157.48,31.04970427]
[1727366463332,44.0763,157.53,157.49,1.2698012]
[1727366463634,44.0763,157.53,157.51,31.04970427]
[1727366463833,43.7616533,157.57,157.51,51.04970427]
[1727366464227,0.3730533,157.57,157.52,20.0]
[1727366464440,0.3730533,157.57,157.54,31.04970427]
[1727366464749,0.3730533,157.57,157.55,1.26928426]
[1727366466027,0.3730533,157.57,157.54,31.04970427]
[1727366466337,0.3730533,157.57,157.55,21.26928278]
[1727366467141,0.3730533,157.57,157.55,20.0]
[1727366467320,0.3730533,157.57,157.51,31.04970427]
[1727366467648,0.3730533,157.57,157.52,20.0]
[1727366468818,0.3730533,157.57,157.53,1.26946924]
[1727366469814,0.3730533,157.57,157.54,31.04970427]
[1727366470434,0.3730533,157.57,157.52,20.0]
[1727366470817,0.3730533,157.57,157.52,21.2695489]
[1727366471017,0.3730533,157.57,157.52,20.0]
[1727366471223,1.0,157.56,157.52,20.0]
[1727366471423,0.3730533,157.57,157.52,20.0]
[1727366471638,1.0,157.56,157.52,20.0]
[1727366472136,6.7193533,157.57,157.51,31.04970427]
[1727366472445,0.3730533,157.57,157.51,31.04970427]
[1727366473220,0.3730533,157.57,157.54,31.04970427]
[1727366475337,45.1109,157.56,157.42,1.58284652]
[1727366475543,45.1109,157.56,157.5,31.04970427]
[1727366475725,45.1109,157.56,157.53,31.04970427]
[1727366476035,13.1836,157.56,157.53,31.04970427]
[1727366476238,13.1836,157.56,157.5,31.04970427]
[1727366477037,1.0,157.55,157.5,31.04970427]
[1727366477642,6.3482,157.53,157.47,31.04970427]
[1727366477824,13.1836,157.56,157.47,31.04970427]
[1727366477825,6.3476,157.54,157.47,31.04970427]
[1727366479122,13.1836,157.56,157.48,21.39526809]
[1727366479630,13.1836,157.56,157.5,31.04970427]
[1727366479842,13.1836,157.56,157.54,20.0]
[1727366480638,13.1836,157.56,157.51,20.0]
[1727366481040,1.0,157.55,157.51,20.0]
[1727366481828,13.1836,157.56,157.51,20.0]
[1727366483046,1.0,157.55,157.51,20.0]
[1727366483428,7.3475,157.55,157.48,20.0]
[1727366483640,19.5304,157.56,157.48,20.0]
[1727366484014,13.1836,157.56,157.48,20.0]
[1727366484214,13.1836,157.56,157.51,20.0]
[1727366484417,13.1836,157.56,157.52,1.26939794]
[1727366484730,13.1836,157.56,157.51,20.0]
[1727366485333,13.1836,157.56,157.53,31.04970427]
[1727366485539,13.1836,157.56,157.51,20.0]
[1727366486349,0.3730533,157.57,157.54,20.0]
[1727366486643,0.3730533,157.57,157.53,31.04970427]
[1727366486941,1.3730533,157.57,157.51,20.0]
[1727366487119,6.7194533,157.57,157.51,20.0]
[1727366487453,0.3730533,157.57,157.51,20.0]
[1727366487643,6.3468,157.56,157.51,20.0]
[1727366487842,0.3730533,157.57,157.51,20.0]
[1727366489048,1.3730533,157.57,157.51,20.0]
[1727366490939,0.3730533,157.57,157.52,1.26948778]
[1727366491540,0.3730533,157.57,157.51,20.0]
[1727366492533,6.7194533,157.57,157.48,20.0]
[1727366492734,0.3730533,157.57,157.48,20.0]
[1727366493227,0.3730533,157.57,157.48,19.3964545]
[1727366493848,6.3472,157.55,157.48,19.3964545]
[1727366494054,6.3468,157.56,157.48,19.3964545]
[1727366494646,0.3730533,157.57,157.48,19.3964545]
[1727366494647,7.3473,157.55,157.48,19.3964545]
[1727366494863,6.3488,157.51,157.41,31.04970427]
[1727366495145,7.3494,157.5,157.41,31.04970427]
[1727366495344,0.12549,157.53,157.42,1.2701364]
[1727366495345,6.3488,157.51,157.42,1.2701364]
[1727366495553,1.0,157.5,157.41,31.04970427]
[1727366496146,7.3494,157.5,157.41,31.04970427]
[1727366496540,1.0,157.49,157.42,20.0]
[1727366496846,44.255,157.48,157.36,31.04970427]
[1727366497049,1.0,157.47,157.36,31.04970427]
[1727366497470,44.255,157.48,157.43,31.04970427]
[1727366498056,44.255,157.48,157.44,20.0]
[1727366500234,1.0,157.46,157.4,31.30466277]
[1727366500459,44.255,157.48,157.41,1.27037715]
[1727366500637,44.255,157.48,157.43,31.04970427]
[1727366500833,44.255,157.48,157.44,1.27004303]
[1727366501044,43.5459,157.56,157.46,31.04970427]
[1727366501250,43.5459,157.56,157.47,1.26981274]
[1727366501251,6.3472,157.55,157.47,1.26981274]
[1727366501450,6.3472,157.55,157.46,31.04970427]
[1727366501675,7.3476,157.54,157.47,20.0]
[1727366501849,6.3476,157.54,157.47,20.0]
[1727366502656,1.0,157.53,157.47,20.0]
[1727366502954,6.3472,157.55,157.47,21.26990731]
[1727366503159,6.3472,157.55,157.47,20.0]
[1727366503463,1.0,157.54,157.47,20.0]
[1727366503752,6.348,157.53,157.47,20.0]
[1727366504057,1.0,157.52,157.47,20.0]
[1727366504569,6.3476,157.54,157.47,20.0]
[1727366504752,6.3476,157.54,157.47,21.26987405]
[1727366504951,6.3472,157.55,157.47,21.26987405]
[1727366506441,6.3472,157.55,157.47,20.0]
[1727366506936,1.0,157.54,157.47,20.0]
[1727366507145,1.0,157.54,157.44,20.0]
[1727366507146,6.3489,157.51,157.44,20.0]
[1727366507453,45.3853,157.48,157.4,31.30466277]
[1727366508745,45.3853,157.48,157.41,20.0]
[1727366509685,45.3853,157.48,157.44,20.0]
[1727366509846,43.068,157.52,157.45,1.26999841]
[1727366510052,43.068,157.52,157.47,20.0]
[1727366510762,43.068,157.52,157.4,0.2549585]
[1727366510935,43.068,157.52,157.4,31.30466277]
[1727366511142,1.0,157.51,157.4,0.2549585]
[1727366511347,6.35,157.48,157.4,0.2549585]
[1727366511865,24.027864,157.5,157.4,0.2549585]
[1727366512155,6.3499,157.49,157.4,0.2549585]
[1727366512740,24.027864,157.5,157.4,0.2549585]
[1727366512741,1.0,157.48,157.4,0.2549585]
[1727366512972,31.7766,157.47,157.4,0.2549585]
[1727366513157,1.0,157.46,157.4,0.2549585]
[1727366513360,7.3508,157.46,157.4,0.2549585]
[1727366513740,6.3508,157.46,157.4,0.2549585]
[1727366514063,12.1614,157.46,157.4,0.2549585]
[1727366514865,12.1614,157.46,157.4,1.52535905]
[1727366517080,0.25098,157.44,157.4,0.2549585]